bitfinex-derivatives/quotes_SOLF0:USTF0_20241120
["timestamp","ask_amount","ask_price","bid_price","bid_amount"]
[1732141205116,2.1046,237.37,237.32,2.105]
[1732141206016,3.466,237.49,237.3,1.3099]
[1732141206412,1.246,237.49,237.3,1.3099]
[1732141206613,2.22,237.48,237.37,2.1046]
[1732141207619,2.22,237.48,237.33,2.22]
[1732141207920,2.104,237.44,237.38,2.1045]
[1732141208120,2.104,237.44,237.33,2.22]
[1732141208318,2.1038,237.46,237.33,2.22]
[1732141208621,23.49107828,237.53,237.33,2.22]
[1732141208622,2.22,237.47,237.33,2.22]
[1732141208921,21.3776704,237.53,237.33,2.22]
[1732141209119,2.22,237.49,237.33,2.22]
[1732141209321,2.22,237.5,237.33,2.22]
[1732141209520,2.1035,237.49,237.33,8.05963051]
[1732141209918,4.3234,237.5,237.46,2.1038]
[1732141210125,21.3776704,237.53,237.39,2.22]
[1732141210325,21.3776704,237.53,237.4,6.007]
[1732141210825,21.3776704,237.53,237.41,1.05215456]
[1732141211123,21.3776704,237.53,237.4,6.007]
[1732141211124,23.4808704,237.53,237.42,1.05215456]
[1732141211424,21.3776704,237.53,237.42,1.05215456]
[1732141211926,21.3776704,237.53,237.4,6.007]
[1732141212321,0.35202,237.58,237.4,6.007]
[1732141212519,0.35202,237.58,237.41,2.11221811]
[1732141212919,0.35202,237.58,237.51,2.1033]
[1732141213617,2.1029,237.56,237.51,2.1033]
[1732141214020,2.45482,237.58,237.52,2.1032]
[1732141214219,0.35202,237.58,237.47,2.22]
[1732141215327,2.45472,237.58,237.54,2.103]
[1732141217425,2.45472,237.58,237.47,2.22]
[1732141217426,0.35202,237.58,237.47,2.22]
[1732141217629,0.35202,237.58,237.55,2.103]
[1732141218133,2.22,237.63,237.55,2.103]
[1732141218825,2.22,237.63,237.54,2.1031]
[1732141219425,2.1026,237.6,237.54,2.1031]
[1732141219626,2.1026,237.6,237.49,3.74]
[1732141219825,2.1026,237.6,237.55,2.103]
[1732141220232,1.2372,237.7,237.49,3.74]
[1732141220426,2.22,237.69,237.53,2.22]
[1732141220626,2.22,237.69,237.54,1.05176365]
[1732141220930,2.1021,237.65,237.6,2.1025]
[1732141221229,2.22,237.69,237.54,1.05174808]
[1732141221422,2.22,237.69,237.55,1.05174808]
[1732141221625,2.102,237.66,237.61,2.1024]
[1732141222528,2.50429,237.7,237.53,2.22]
[1732141222529,2.1019,237.67,237.54,1.05169988]
[1732141222731,2.1019,237.67,237.55,1.05169988]
[1732141222923,2.1019,237.67,237.53,2.22]
[1732141223127,2.1019,237.67,237.54,1.05167831]
[1732141223324,2.1019,237.67,237.53,2.22]
[1732141223632,2.1019,237.67,237.63,2.1022]
[1732141224019,0.28429,237.7,237.64,2.1022]
[1732141224020,2.1018,237.69,237.64,2.1022]
[1732141224222,2.1018,237.69,237.6,1.2241]
[1732141224421,0.28429,237.7,237.6,3.7533]
[1732141224626,2.38599,237.7,237.6,3.7533]
[1732141227530,2.38599,237.7,237.65,2.102]
[1732141228233,0.28429,237.7,237.6,3.7533]
[1732141229928,2.50429,237.7,237.6,2.4536]
[1732141231135,2.1019,237.67,237.62,2.1023]
[1732141232432,2.1023,237.63,237.6,1.2241]
[1732141232828,2.22,237.69,237.6,1.2241]
[1732141233130,2.1022,237.64,237.6,1.2241]
[1732141234834,2.22,237.69,237.6,1.2241]
[1732141235032,2.22,237.69,237.6,3.3266]
[1732141235033,2.1021,237.65,237.6,3.3266]
[1732141235331,2.22,237.69,237.6,1.2241]
[1732141236335,2.102,237.66,237.61,2.1024]
[1732141236539,8.62812492,237.66,237.61,2.1024]
[1732141236837,6.52612492,237.66,237.6,1.2241]
[1732141238237,2.1021,237.65,237.6,3.3266]
[1732141242140,2.1023,237.64,237.59,2.1026]
[1732141242336,6.52612492,237.66,237.57,6.52612492]
[1732141242847,2.1024,237.62,237.58,2.1027]
[1732141245243,2.1025,237.61,237.58,2.1027]
[1732141245942,6.52612492,237.66,237.59,2.1026]
[1732141246141,6.52612492,237.66,237.57,6.52612492]
[1732141246344,6.52612492,237.66,237.58,1.05153525]
[1732141246549,6.52612492,237.66,237.57,6.52612492]
[1732141246846,2.1024,237.62,237.59,2.1026]
[1732141249250,6.52612492,237.64,237.56,2.1029]
[1732141249450,6.52612492,237.62,237.57,1.05158684]
[1732141249747,6.52612492,237.62,237.54,8.74612492]
[1732141249945,6.52612492,237.62,237.55,1.05167483]
[1732141250146,6.52612492,237.62,237.56,1.05167483]
[1732141250343,2.1027,237.59,237.57,1.05167483]
[1732141250548,2.1027,237.59,237.55,2.1029]
[1732141250749,2.1027,237.59,237.56,1.05169362]
[1732141250948,2.1027,237.59,237.57,1.05169362]
[1732141251146,2.1027,237.59,237.58,1.0516895]
[1732141251947,2.1027,237.59,237.56,2.1028]
[1732141252144,2.1028,237.58,237.57,1.05171228]
[1732141254754,2.1026,237.59,237.57,1.05171228]
[1732141254949,2.1026,237.59,237.58,1.05171228]
[1732141255149,2.1026,237.59,237.58,1.05171734]
[1732141255549,2.1026,237.59,237.58,1.05171601]
[1732141256150,2.1025,237.61,237.58,1.05171601]
[1732141256356,2.1025,237.61,237.59,1.05171601]
[1732141256552,2.1025,237.61,237.6,1.05171601]
[1732141256948,2.22,237.63,237.6,1.05171601]
[1732141257155,2.1024,237.62,237.61,1.05171601]
[1732141259458,8.62852492,237.62,237.61,1.05171601]
[1732141259849,6.52612492,237.62,237.55,2.1029]
[1732141260053,2.1026,237.6,237.56,1.05170782]
[1732141260250,2.1026,237.6,237.57,1.05170782]
[1732141260455,2.1026,237.6,237.58,1.05170782]
[1732141260752,2.1026,237.6,237.59,1.05170782]
[1732141260958,2.1026,237.6,237.55,2.1029]
[1732141261159,2.1026,237.6,237.56,1.05172254]
[1732141261354,2.1026,237.6,237.52,7.79662492]
[1732141261355,2.1028,237.58,237.57,1.05172254]
[1732141263759,2.1028,237.58,237.53,2.1031]
[1732141263972,2.1028,237.58,237.57,1.051804]
[1732141264168,2.1028,237.58,237.53,2.1031]
[1732141264359,2.1028,237.58,237.57,1.0518033]
[1732141264959,2.1028,237.58,237.54,1.0518033]
[1732141265161,2.1028,237.58,237.57,1.0518033]
[1732141265769,2.1028,237.57,237.53,2.1031]
[1732141265966,2.1028,237.57,237.54,1.0518735]
[1732141266360,2.1028,237.57,237.55,1.0518735]
[1732141266569,2.1028,237.57,237.56,1.0518735]
[1732141266864,2.1028,237.57,237.56,1.05186393]
[1732141267263,2.1028,237.57,237.56,1.05186018]
[1732141268370,2.1028,237.58,237.56,1.05186018]
[1732141268670,2.1028,237.58,237.57,1.05186018]
[1732141269168,2.1028,237.58,237.53,2.1031]
[1732141269469,2.1028,237.58,237.54,1.0518007]
[1732141269673,2.1028,237.58,237.55,1.0518007]
[1732141269870,2.22,237.63,237.56,1.0518007]
[1732141270169,2.22,237.63,237.57,1.0518007]
[1732141270359,2.22,237.63,237.58,1.0518007]
[1732141270565,2.22,237.63,237.55,2.103]
[1732141270864,2.22,237.63,237.56,1.05173994]
[1732141271065,2.22,237.63,237.57,1.05173994]
[1732141271270,2.22,237.63,237.58,1.05173994]
[1732141271471,2.22,237.63,237.59,1.0517371]
[1732141271775,2.1026,237.6,237.55,2.103]
[1732141271976,2.1026,237.6,237.56,1.05172665]
[1732141272171,2.22,237.63,237.57,1.05172665]
[1732141272373,2.1027,237.58,237.53,2.1031]
[1732141272575,2.1027,237.58,237.54,1.05174818]
[1732141272777,2.1027,237.58,237.55,1.05174818]
[1732141273078,2.1027,237.58,237.56,1.05174818]
[1732141273275,2.1027,237.58,237.57,1.05174818]
[1732141274281,2.1027,237.58,237.57,1.05176148]
[1732141277878,2.22,237.62,237.46,3.736]
[1732141278082,2.22,237.62,237.47,1.05203562]
[1732141278374,0.68228838,237.61,237.48,1.05203562]
[1732141278583,0.68228838,237.61,237.39,1.264]
[1732141278776,1.68228838,237.61,237.4,1.05232159]
[1732141278983,2.104,237.43,237.41,1.05232159]
[1732141279178,2.104,237.43,237.42,1.05232159]
[1732141279786,2.22,237.46,237.42,1.05236714]
[1732141280083,2.104,237.44,237.43,1.05236714]
[1732141280580,2.22,237.46,237.39,1.264]
[1732141280786,2.22,237.46,237.4,1.05226026]
[1732141280985,2.22,237.46,237.41,1.05226026]
[1732141281279,2.22,237.49,237.42,1.05226026]
[1732141281480,1.0,237.61,237.43,1.05226026]
[1732141281481,2.22,237.5,237.43,1.05226026]
[1732141281683,2.22,237.5,237.44,1.05226026]
[1732141281886,2.22,237.5,237.42,2.1041]
[1732141282086,2.22,237.5,237.43,1.05225622]
[1732141282288,2.22,237.5,237.44,1.05225622]
[1732141282584,2.22,237.51,237.45,1.05225011]
[1732141282783,2.22,237.51,237.39,1.264]
[1732141282987,2.22,237.51,237.4,1.05224484]
[1732141283182,2.1032,237.53,237.41,1.05224484]
[1732141283387,2.22,237.55,237.42,1.05224484]
[1732141283585,2.1031,237.54,237.43,1.05223337]
[1732141283785,2.1031,237.54,237.44,1.05223337]
[1732141283983,2.22,237.55,237.45,1.05215931]
[1732141284189,2.22,237.55,237.46,2.1037]
[1732141284487,1.0,237.61,237.45,1.05215931]
[1732141284688,1.0,237.61,237.45,3.15595931]
[1732141284689,15.53229526,237.6,237.45,3.15595931]
[1732141284886,14.85,237.6,237.46,1.05215931]
[1732141285087,14.85,237.6,237.39,3.484]
[1732141285088,14.85,237.6,237.47,1.05215931]
[1732141285388,14.85,237.6,237.39,3.484]
[1732141285589,0.35205,237.55,237.4,1.05211985]
[1732141285888,0.35205,237.55,237.48,2.1035]
[1732141286188,0.35205,237.55,237.39,3.484]
[1732141286386,0.35205,237.55,237.4,1.05212032]
[1732141286582,0.35205,237.55,237.5,2.1033]
[1732141291187,0.35205,237.55,237.46,1.2666]
[1732141291383,0.35205,237.55,237.51,2.1033]
[1732141291986,0.35205,237.55,237.47,1.3164]
[1732141292184,0.35205,237.55,237.52,2.1032]
[1732141294493,0.35205,237.55,237.53,2.1031]
[1732141295095,0.35205,237.55,237.52,2.1032]
[1732141295696,0.35205,237.55,237.48,1.2401]
[1732141295895,0.35205,237.55,237.49,1.0519357]
[1732141296190,0.35205,237.55,237.5,1.0519357]
[1732141296387,0.35205,237.55,237.54,2.1031]
[1732141298393,2.1025,237.6,237.55,2.103]
[1732141298792,2.1022,237.65,237.51,2.22]
[1732141299091,2.22,237.66,237.58,2.1026]
[1732141299291,2.22,237.66,237.51,2.22]
[1732141299489,2.1023,237.64,237.52,1.05171414]
[1732141299698,2.1023,237.64,237.53,1.05171414]
[1732141299993,2.1023,237.64,237.51,2.22]
[1732141300299,2.1023,237.64,237.52,1.05170687]
[1732141300496,2.22,237.66,237.53,1.05170687]
[1732141300798,2.22,237.66,237.54,1.05170687]
[1732141301098,2.22,237.66,237.55,1.05170687]
[1732141301299,2.1022,237.65,237.61,2.1024]
[1732141302998,4.322,237.66,237.61,2.1024]
[1732141304602,2.22,237.66,237.61,2.1024]
[1732141304798,2.22,237.66,237.57,1.2827]
[1732141305001,2.22,237.66,237.62,2.1024]
[1732141307204,2.37332,237.67,237.62,2.1024]
[1732141307696,0.27142,237.67,237.63,2.1022]
[1732141308495,0.27142,237.67,237.58,1.2975]
[1732141308695,0.27142,237.67,237.65,2.1021]
[1732141308893,0.27142,237.67,237.58,1.2975]
[1732141309103,0.27142,237.67,237.59,1.05150072]
[1732141309304,0.27142,237.67,237.6,1.05150072]
[1732141309496,0.27142,237.67,237.61,1.05150072]
[1732141309698,0.27142,237.67,237.62,1.05150072]
[1732141310003,0.27142,237.67,237.58,1.2975]
[1732141310203,0.27142,237.67,237.59,1.05140653]
[1732141310403,0.27142,237.67,237.6,1.05140653]
[1732141310604,0.27142,237.67,237.61,1.05140653]
[1732141310805,0.27142,237.67,237.62,1.05140653]
[1732141311105,0.27142,237.67,237.66,2.102]
[1732141313001,0.27142,237.67,237.58,1.2975]
[1732141313302,0.27142,237.67,237.59,1.05141935]
[1732141313703,0.27142,237.67,237.64,2.1022]
[1732141314306,2.1019,237.68,237.64,2.1022]
[1732141317611,2.1018,237.69,237.64,2.1021]
[1732141319208,2.1018,237.69,237.58,1.2975]
[1732141319408,2.1018,237.69,237.65,2.1021]
[1732141321709,23.55869543,237.73,237.6,1.05139021]
[1732141321912,36.18869543,237.73,237.58,1.2975]
[1732141322302,2.1023,237.63,237.58,1.2975]
[1732141322906,2.2,237.64,237.58,1.2975]
[1732141323207,2.2,237.64,237.59,2.1026]
[1732141323208,4.3022,237.64,237.59,2.1026]
[1732141323907,2.2,237.64,237.57,1.2827]
[1732141324407,2.1025,237.6,237.57,1.2827]
[1732141325610,2.1024,237.62,237.57,1.2827]
[1732141327209,2.1024,237.62,237.57,3.3855]
[1732141327405,2.1024,237.62,237.57,1.2827]
[1732141327805,2.1024,237.62,237.46,1.2841]
[1732141328007,2.1027,237.59,237.53,2.1031]
[1732141328205,2.2,237.64,237.47,3.4414]
[1732141328508,2.1026,237.59,237.54,2.103]
[1732141333114,2.1026,237.59,237.47,3.4614]
[1732141333306,2.1026,237.59,237.55,2.103]
[1732141334010,2.11297911,237.65,237.51,2.1033]
[1732141334011,2.103,237.55,237.51,2.1033]
[1732141334213,2.22,237.58,237.52,1.05184886]
[1732141334407,2.22,237.58,237.47,3.4614]
[1732141334616,2.103,237.55,237.51,2.1033]
[1732141334815,2.22,237.58,237.48,1.05189994]
[1732141335015,2.22,237.58,237.49,1.05189994]
[1732141335216,2.1032,237.53,237.5,1.05189994]
[1732141335413,2.1032,237.53,237.51,1.05189994]
[1732141335615,2.1032,237.53,237.49,2.1034]
[1732141335916,2.1033,237.51,237.5,1.05195418]
[1732141336110,2.22,237.58,237.46,2.1037]
[1732141336306,2.22,237.58,237.47,1.05210793]
[1732141336510,2.22,237.58,237.45,2.1038]
[1732141336711,2.22,237.58,237.46,1.0521598]
[1732141336914,12.63,237.61,237.4,4.6539]
[1732141336915,2.22,237.57,237.47,1.0521598]
[1732141337115,2.22,237.57,237.47,2.1036]
[1732141337415,2.22,237.57,237.4,4.6539]
[1732141337614,2.22,237.57,237.48,2.1035]
[1732141337615,2.1032,237.53,237.48,2.1035]
[1732141338116,12.63,237.61,237.4,4.6539]
[1732141338317,12.63,237.59,237.41,1.05216776]
[1732141338617,12.63,237.59,237.42,1.05216776]
[1732141338825,12.63,237.59,237.47,2.1037]
[1732141339021,14.71179154,237.59,237.47,2.1037]
[1732141339525,2.1032,237.53,237.47,2.1037]
[1732141339720,2.22,237.52,237.47,2.1037]
[1732141340420,2.1036,237.49,237.44,2.1039]
[1732141340824,2.1036,237.49,237.4,2.4339]
[1732141341024,2.1036,237.49,237.41,1.05228196]
[1732141341224,2.1036,237.49,237.42,1.05228196]
[1732141341422,2.1036,237.49,237.4,2.4339]
[1732141341724,2.1036,237.49,237.43,2.104]
[1732141342519,2.1036,237.49,237.4,2.4339]
[1732141342930,2.1036,237.49,237.43,2.104]
[1732141343325,2.1036,237.49,237.4,2.4339]
[1732141343532,2.1036,237.49,237.44,2.1039]
[1732141343832,2.22,237.52,237.4,2.4339]
[1732141344028,2.1034,237.5,237.45,2.1038]
[1732141344729,2.22,237.52,237.45,2.1038]
[1732141345026,2.1035,237.49,237.45,2.1038]
[1732141345629,2.1034,237.5,237.45,2.1038]
[1732141346028,2.22,237.52,237.45,2.1038]
[1732141346029,2.1034,237.51,237.45,2.1038]
[1732141346530,4.3233,237.52,237.47,2.1037]
[1732141346729,2.22,237.52,237.41,1.05223367]
[1732141346933,2.22,237.52,237.42,1.05223367]
[1732141347129,2.22,237.52,237.4,2.4339]
[1732141347331,2.1034,237.51,237.41,1.0522494]
[1732141347531,2.1034,237.51,237.42,1.0522494]
[1732141347834,2.1034,237.51,237.4,2.4339]
[1732141348133,2.1034,237.51,237.46,2.1037]
[1732141348527,2.1034,237.51,237.4,2.4339]
[1732141348728,2.22,237.52,237.41,1.05222328]
[1732141348929,2.22,237.52,237.42,1.05222328]
[1732141349133,2.22,237.52,237.4,2.4339]
[1732141349432,4.3233,237.52,237.47,2.1037]
[1732141349628,4.3233,237.52,237.42,1.05221134]
[1732141349834,4.3233,237.52,237.4,2.4339]
[1732141350034,4.3233,237.52,237.41,1.05220918]
[1732141350230,4.3233,237.52,237.42,1.05220918]
[1732141350431,2.1033,237.51,237.47,2.1036]
[1732141351228,2.22,237.52,237.4,2.4339]
[1732141351229,2.22,237.52,237.41,1.05220957]
[1732141351435,4.3233,237.52,237.48,2.1036]
[1732141352136,2.1033,237.52,237.48,2.1036]
[1732141353535,2.1032,237.53,237.48,2.1036]
[1732141355930,2.1033,237.52,237.48,2.1036]
[1732141357139,2.2,237.54,237.48,2.1036]
[1732141357331,2.1032,237.53,237.48,2.1036]
[1732141361436,4.3032,237.53,237.48,2.1036]
[1732141363335,2.08179154,237.59,237.4,2.4339]
[1732141363542,2.1033,237.51,237.46,2.1037]
[1732141364038,2.1033,237.51,237.47,2.1037]
[1732141364635,2.1033,237.51,237.46,2.1038]
[1732141365742,2.1034,237.5,237.46,2.1038]
[1732141366641,2.1034,237.5,237.47,1.05217037]
[1732141366842,2.1034,237.5,237.46,2.1038]
[1732141367043,2.1034,237.5,237.47,1.05217039]
[1732141367246,2.1034,237.5,237.46,2.1038]
[1732141367435,2.1034,237.5,237.47,1.05217003]
[1732141367635,2.2,237.52,237.4,2.4339]
[1732141367840,2.2,237.52,237.41,1.05231936]
[1732141368043,2.2,237.52,237.42,1.05231936]
[1732141368242,2.2,237.52,237.43,1.05231936]
[1732141368445,2.2,237.52,237.4,2.4339]
[1732141368640,2.1039,237.45,237.41,1.05238111]
[1732141368844,4.3039,237.45,237.42,1.05238111]
[1732141369046,4.3039,237.45,237.43,1.05238111]
[1732141369247,4.3039,237.45,237.4,2.4339]
[1732141369448,4.3039,237.45,237.41,1.0523838]
[1732141369745,2.104,237.44,237.42,1.0523838]
[1732141369940,2.104,237.44,237.43,1.0523838]
[1732141370543,4.3039,237.45,237.43,1.0523838]
[1732141370743,4.3039,237.45,237.4,2.1043]
[1732141370943,4.3039,237.45,237.41,1.05239469]
[1732141371139,4.3039,237.45,237.42,1.05239469]
[1732141371340,4.3039,237.45,237.43,1.05239469]
[1732141371539,4.3039,237.45,237.4,2.1043]
[1732141371739,4.3039,237.45,237.41,1.0523821]
[1732141371942,4.3039,237.45,237.4,2.1043]
[1732141372348,4.3039,237.45,237.41,1.05237703]
[1732141372647,4.3039,237.45,237.42,1.05238533]
[1732141373346,4.3039,237.45,237.43,1.05238533]
[1732141373545,4.3039,237.45,237.41,1.05237703]
[1732141373746,4.3039,237.45,237.42,1.05238273]
[1732141373947,4.3039,237.45,237.43,1.05238273]
[1732141374143,4.3039,237.45,237.41,1.05237703]
[1732141374339,4.3039,237.45,237.42,1.05238439]
[1732141374544,4.3039,237.45,237.41,1.05237703]
[1732141374545,4.3039,237.45,237.43,1.05238439]
[1732141374843,4.3039,237.45,237.41,1.05237703]
[1732141375048,4.3039,237.45,237.42,1.05238397]
[1732141375347,4.3039,237.45,237.43,1.05238397]
[1732141375543,4.3039,237.45,237.43,1.0523824]
[1732141375748,4.3039,237.45,237.4,2.1043]
[1732141375941,4.3039,237.45,237.41,1.0523809]
[1732141376145,4.3039,237.45,237.42,1.0523809]
[1732141376450,4.3039,237.45,237.43,1.0523809]
[1732141376653,4.3039,237.45,237.4,2.1043]
[1732141376850,4.3039,237.45,237.41,1.05238732]
[1732141377048,4.3039,237.45,237.42,1.05238732]
[1732141377349,4.3039,237.45,237.43,1.05238732]
[1732141377545,4.3039,237.45,237.44,1.05238732]
[1732141378353,4.3039,237.45,237.44,1.05239303]
[1732141378553,4.3039,237.45,237.4,2.1043]
[1732141378749,4.3039,237.45,237.41,1.0523939]
[1732141379048,4.3039,237.45,237.42,1.0523939]
[1732141379250,4.3039,237.45,237.43,1.0523939]
[1732141379444,4.3039,237.45,237.44,1.0523939]
[1732141381255,4.3039,237.45,237.44,1.05239276]
[1732141381451,4.3039,237.45,237.4,2.1043]
[1732141381753,4.3039,237.45,237.41,1.05238889]
[1732141381950,4.3039,237.45,237.42,1.05238889]
[1732141382158,4.3039,237.45,237.43,1.05238889]
[1732141382351,4.3039,237.45,237.44,1.05238889]
[1732141383954,2.2,237.45,237.44,1.05238889]
[1732141385256,4.3039,237.45,237.44,1.05238889]
[1732141387248,4.3039,237.45,237.4,2.1043]
[1732141387453,4.3039,237.45,237.44,1.05238398]
[1732141388949,4.3039,237.45,237.4,2.1043]
[1732141389152,4.3039,237.45,237.41,1.052387]
[1732141389353,4.3039,237.45,237.42,1.052387]
[1732141389552,4.3039,237.45,237.43,1.052387]
[1732141389751,4.3039,237.45,237.44,1.052387]
[1732141391251,4.3039,237.45,237.4,2.1043]
[1732141391453,4.3039,237.45,237.44,1.05238193]
[1732141394663,2.2,237.45,237.44,1.05238193]
[1732141394956,2.2,237.45,237.44,1.0523838]
[1732141396462,4.3039,237.45,237.44,1.0523838]
[1732141400864,4.3039,237.45,237.4,2.1043]
[1732141401058,4.3039,237.45,237.41,1.05238193]
[1732141401265,4.3039,237.45,237.4,2.1043]
[1732141401463,4.3039,237.45,237.41,1.05238408]
[1732141401869,4.3039,237.45,237.4,2.1043]
[1732141402061,4.3039,237.45,237.41,1.05238059]
[1732141402264,4.3039,237.45,237.42,1.05238059]
[1732141402568,4.3039,237.45,237.43,1.05238059]
[1732141402765,4.3039,237.45,237.44,1.05238059]
[1732141404564,4.3039,237.45,237.4,2.1043]
[1732141404770,4.3039,237.45,237.41,1.05236846]
[1732141404972,4.3039,237.45,237.42,1.05236846]
[1732141405171,4.3039,237.45,237.43,1.05236846]
[1732141405469,4.3039,237.45,237.44,1.05236846]
[1732141406367,2.1042,237.42,237.37,2.1046]
[1732141406566,2.1042,237.42,237.38,1.05248399]
[1732141406769,2.1042,237.42,237.39,1.05248399]
[1732141406972,2.2,237.45,237.4,1.05248399]
[1732141407171,2.2,237.45,237.41,1.05248399]
[1732141407472,2.2,237.45,237.42,1.05248399]
[1732141407773,2.2,237.45,237.43,1.05248399]
[1732141407969,2.2,237.45,237.37,2.1046]
[1732141407970,2.1042,237.42,237.37,2.1046]
[1732141408275,2.1042,237.42,237.38,1.05252157]
[1732141408574,2.1042,237.42,237.39,1.05252157]
[1732141408774,2.1042,237.42,237.37,2.1046]
[1732141408775,2.1042,237.42,237.4,1.05252157]
[1732141408975,2.1042,237.42,237.41,1.05252157]
[1732141410870,2.1042,237.42,237.38,2.1045]
[1732141411265,2.1042,237.42,237.41,1.05251089]
[1732141411772,2.1042,237.42,237.41,2.10502178]
[1732141414079,4.3042,237.42,237.41,1.05251089]
[1732141414272,4.3042,237.42,237.41,2.10506397]
[1732141415476,2.2,237.42,237.29,17.48126094]
[1732141415673,2.1046,237.34,237.29,17.48126094]
[1732141415878,2.2,237.36,237.29,19.58636094]
[1732141416180,2.2,237.35,237.29,19.58636094]
[1732141416378,4.3046,237.35,237.29,19.58636094]
[1732141417180,4.3046,237.35,237.3,7.93208698]
[1732141417974,2.2,237.35,237.3,2.105]
[1732141419483,4.3046,237.35,237.3,2.105]
[1732141419977,2.2,237.35,237.3,2.105]
[1732141420884,2.2,237.35,237.29,2.1051]
[1732141422384,2.1046,237.34,237.29,2.1051]
[1732141423988,2.1047,237.33,237.29,2.1051]
[1732141426193,2.1046,237.34,237.29,2.1051]
[1732141427293,2.1046,237.34,237.3,2.105]
[1732141427486,2.1046,237.34,237.31,1.0526911]
[1732141427690,2.1046,237.34,237.32,1.0526911]
[1732141427989,2.1046,237.34,237.33,1.0526911]
[1732141428895,2.2,237.35,237.33,1.0526911]
[1732141429094,2.2,237.35,237.34,1.0526911]
[1732141429596,2.2,237.38,237.34,1.0526911]
[1732141429796,2.2,237.38,237.35,1.0526911]
[1732141429995,2.2,237.38,237.36,1.0526911]
[1732141430198,2.2,237.38,237.32,2.1048]
[1732141430397,2.1044,237.37,237.32,2.1048]
[1732141430795,2.1044,237.37,237.33,1.05268793]
[1732141430996,2.1044,237.37,237.34,1.05268793]
[1732141431198,2.1044,237.37,237.35,1.05268793]
[1732141431500,2.2,237.38,237.25,2.5292]
[1732141431695,2.1042,237.39,237.26,1.05268031]
[1732141432000,2.2,237.41,237.27,1.05268031]
[1732141432197,2.2,237.41,237.28,1.05268031]
[1732141432397,2.1042,237.4,237.29,1.05268031]
[1732141432600,2.1042,237.4,237.3,1.05268031]
[1732141432899,2.1042,237.4,237.31,1.05268031]
[1732141433099,2.1042,237.4,237.35,2.1045]
[1732141433303,2.1042,237.4,237.36,1.05268031]
[1732141433602,2.1042,237.4,237.37,1.05268031]
[1732141433800,2.1042,237.4,237.38,1.05268031]
[1732141434001,2.1042,237.4,237.35,2.1045]
[1732141434197,2.1042,237.4,237.36,1.05261053]
[1732141434393,2.1042,237.4,237.37,1.05261053]
[1732141434701,2.1042,237.4,237.35,2.1045]
[1732141434901,2.1042,237.4,237.36,1.05261133]
[1732141435095,2.1042,237.4,237.37,1.05261133]
[1732141435396,2.1042,237.4,237.35,2.1045]
[1732141435603,2.1042,237.4,237.36,1.0526118]
[1732141435801,2.1042,237.4,237.37,1.0526118]
[1732141436005,2.1042,237.4,237.35,2.1045]
[1732141436303,2.1042,237.4,237.36,1.05261193]
[1732141436496,2.1042,237.4,237.37,1.05261193]
[1732141436697,2.1042,237.4,237.35,2.1045]
[1732141437002,2.1042,237.4,237.36,1.05261504]
[1732141437197,2.1042,237.4,237.37,1.05261536]
[1732141437601,2.1042,237.4,237.38,1.05261536]
[1732141437803,2.1042,237.4,237.35,2.1045]
[1732141438096,2.1042,237.4,237.36,1.05261021]
[1732141438302,2.1042,237.4,237.37,1.05261021]
[1732141438603,2.1042,237.4,237.38,1.05261021]
[1732141438797,2.1042,237.4,237.35,2.1045]
[1732141438998,2.2,237.41,237.36,1.05261155]
[1732141439198,2.2,237.41,237.37,1.05261155]
[1732141439501,2.2,237.41,237.33,2.1046]
[1732141439701,2.1044,237.38,237.34,1.05261738]
[1732141439904,2.2,237.41,237.35,1.05261738]
[1732141440094,2.2,237.41,237.36,1.05261738]
[1732141440297,2.2,237.41,237.37,1.05261738]